{"text_format":"3","workbook":"xlsx","n_sheets":1,"sheets":["PERTVARKYMO IŠLAIDOS"],"not_rendered":{"images":2,"defined_names":4},"read":"whole","date_system":"1900"}

{"sheet":"PERTVARKYMO IŠLAIDOS","index":0,"n_rows":28,"n_cols":8,"rows_kept":28,"merged":[[25,1,25,5],[26,1,26,5],[27,1,27,5]]}
[null,"VIRTUVĖS PERTVARKYMO IŠLAIDŲ DARBALAPIS"]
[]
[null,"Kategorija","Prekės","Kiekis","Numatomos išlaidos","Faktinės išlaidos","Bendroji numatomų išlaidų suma","Bendroji faktinių išlaidų suma"]
[null,"Spintelės","Pastatomos spintelės: modulinės, standartinės (kiekis tiesinėmis pėdomis)",25,{"v":5,"d":"5.00 EUR"},null,{"$f":"Duomenys[[#This Row],[Kiekis]]*Duomenys[[#This Row],[Numatomos išlaidos]]","v":{"v":125,"d":"125 EUR"}},{"$f":"Duomenys[[#This Row],[Kiekis]]*Duomenys[[#This Row],[Faktinės išlaidos]]","v":{"v":0,"d":"0 EUR"}}]
[null,"Spintelės","Pakabinamos spintelės: modulinės, standartinės (kiekis tiesinėmis pėdomis)",25,{"v":3.5,"d":"3.50 EUR"},null,{"$f":"Duomenys[[#This Row],[Kiekis]]*Duomenys[[#This Row],[Numatomos išlaidos]]","v":{"v":87.5,"d":"88 EUR"}},{"$f":"Duomenys[[#This Row],[Kiekis]]*Duomenys[[#This Row],[Faktinės išlaidos]]","v":{"v":0,"d":"0 EUR"}}]
[null,"Valymo prietaisai","Indaplovė: standartinė",1,{"v":250,"d":"250.00 EUR"},null,{"$f":"Duomenys[[#This Row],[Kiekis]]*Duomenys[[#This Row],[Numatomos išlaidos]]","v":{"v":250,"d":"250 EUR"}},{"$f":"Duomenys[[#This Row],[Kiekis]]*Duomenys[[#This Row],[Faktinės išlaidos]]","v":{"v":0,"d":"0 EUR"}}]
[null,"Valymo prietaisai","Šiukšlinė: standartinė",1,{"v":175,"d":"175.00 EUR"},null,{"$f":"Duomenys[[#This Row],[Kiekis]]*Duomenys[[#This Row],[Numatomos išlaidos]]","v":{"v":175,"d":"175 EUR"}},{"$f":"Duomenys[[#This Row],[Kiekis]]*Duomenys[[#This Row],[Faktinės išlaidos]]","v":{"v":0,"d":"0 EUR"}}]
[null,"Maisto gaminimo prietaisai","Įvairūs: integruoti, standartiniai",1,{"v":375,"d":"375.00 EUR"},null,{"$f":"Duomenys[[#This Row],[Kiekis]]*Duomenys[[#This Row],[Numatomos išlaidos]]","v":{"v":375,"d":"375 EUR"}},{"$f":"Duomenys[[#This Row],[Kiekis]]*Duomenys[[#This Row],[Faktinės išlaidos]]","v":{"v":0,"d":"0 EUR"}}]
[null,"Maisto gaminimo prietaisai","Mikrobangų krosnelė: standartinė",1,{"v":300,"d":"300.00 EUR"},null,{"$f":"Duomenys[[#This Row],[Kiekis]]*Duomenys[[#This Row],[Numatomos išlaidos]]","v":{"v":300,"d":"300 EUR"}},{"$f":"Duomenys[[#This Row],[Kiekis]]*Duomenys[[#This Row],[Faktinės išlaidos]]","v":{"v":0,"d":"0 EUR"}}]
[null,"Stalviršiai","Dirbtinio akmens masė (kiekis teisinėmis pėdomis)",23,{"v":10,"d":"10.00 EUR"},null,{"$f":"Duomenys[[#This Row],[Kiekis]]*Duomenys[[#This Row],[Numatomos išlaidos]]","v":{"v":230,"d":"230 EUR"}},{"$f":"Duomenys[[#This Row],[Kiekis]]*Duomenys[[#This Row],[Faktinės išlaidos]]","v":{"v":0,"d":"0 EUR"}}]
[null,"Durys","Vidinės: faneruota medžio drožlių plokštė",1,{"v":65,"d":"65.00 EUR"},null,{"$f":"Duomenys[[#This Row],[Kiekis]]*Duomenys[[#This Row],[Numatomos išlaidos]]","v":{"v":65,"d":"65 EUR"}},{"$f":"Duomenys[[#This Row],[Kiekis]]*Duomenys[[#This Row],[Faktinės išlaidos]]","v":{"v":0,"d":"0 EUR"}}]
[null,"Priedai","Priedai: karšto vandens įtaisas; standartinis",1,{"v":120,"d":"120.00 EUR"},null,{"$f":"Duomenys[[#This Row],[Kiekis]]*Duomenys[[#This Row],[Numatomos išlaidos]]","v":{"v":120,"d":"120 EUR"}},{"$f":"Duomenys[[#This Row],[Kiekis]]*Duomenys[[#This Row],[Faktinės išlaidos]]","v":{"v":0,"d":"0 EUR"}}]
[null,"Priedai","Priedai: muilo dozatorius",1,{"v":40,"d":"40.00 EUR"},null,{"$f":"Duomenys[[#This Row],[Kiekis]]*Duomenys[[#This Row],[Numatomos išlaidos]]","v":{"v":40,"d":"40 EUR"}},{"$f":"Duomenys[[#This Row],[Kiekis]]*Duomenys[[#This Row],[Faktinės išlaidos]]","v":{"v":0,"d":"0 EUR"}}]
[null,"Maišytuvai","Maišytuvas: su svirtimi; standartinis",1,{"v":130,"d":"130.00 EUR"},null,{"$f":"Duomenys[[#This Row],[Kiekis]]*Duomenys[[#This Row],[Numatomos išlaidos]]","v":{"v":130,"d":"130 EUR"}},{"$f":"Duomenys[[#This Row],[Kiekis]]*Duomenys[[#This Row],[Faktinės išlaidos]]","v":{"v":0,"d":"0 EUR"}}]
[null,"Grindys","Laminatas (kiekis kvadratinėmis pėdomis)",165,{"v":3.5,"d":"3.50 EUR"},null,{"$f":"Duomenys[[#This Row],[Kiekis]]*Duomenys[[#This Row],[Numatomos išlaidos]]","v":{"v":577.5,"d":"578 EUR"}},{"$f":"Duomenys[[#This Row],[Kiekis]]*Duomenys[[#This Row],[Faktinės išlaidos]]","v":{"v":0,"d":"0 EUR"}}]
[null,"Skalbimo prietaisai","Skalbyklė: standartinė",1,{"v":500,"d":"500.00 EUR"},null,{"$f":"Duomenys[[#This Row],[Kiekis]]*Duomenys[[#This Row],[Numatomos išlaidos]]","v":{"v":500,"d":"500 EUR"}},{"$f":"Duomenys[[#This Row],[Kiekis]]*Duomenys[[#This Row],[Faktinės išlaidos]]","v":{"v":0,"d":"0 EUR"}}]
[null,"Skalbimo prietaisai","Džiovyklė: standartinė",1,{"v":375,"d":"375.00 EUR"},null,{"$f":"Duomenys[[#This Row],[Kiekis]]*Duomenys[[#This Row],[Numatomos išlaidos]]","v":{"v":375,"d":"375 EUR"}},{"$f":"Duomenys[[#This Row],[Kiekis]]*Duomenys[[#This Row],[Faktinės išlaidos]]","v":{"v":0,"d":"0 EUR"}}]
[null,"Apšvietimas","Apšvietimas: įleidžiami šviestuvai",4,{"v":35,"d":"35.00 EUR"},null,{"$f":"Duomenys[[#This Row],[Kiekis]]*Duomenys[[#This Row],[Numatomos išlaidos]]","v":{"v":140,"d":"140 EUR"}},{"$f":"Duomenys[[#This Row],[Kiekis]]*Duomenys[[#This Row],[Faktinės išlaidos]]","v":{"v":0,"d":"0 EUR"}}]
[null,"Šaldytuvai","Šaldytuvas: laisvai pastatomas, liukso klasės",1,{"v":1200,"d":"1,200.00 EUR"},null,{"$f":"Duomenys[[#This Row],[Kiekis]]*Duomenys[[#This Row],[Numatomos išlaidos]]","v":{"v":1200,"d":"1,200 EUR"}},{"$f":"Duomenys[[#This Row],[Kiekis]]*Duomenys[[#This Row],[Faktinės išlaidos]]","v":{"v":0,"d":"0 EUR"}}]
[null,"Kriauklės","Dviejų dubenų nerūdijančio plieno, liukso klasės",1,{"v":125,"d":"125.00 EUR"},null,{"$f":"Duomenys[[#This Row],[Kiekis]]*Duomenys[[#This Row],[Numatomos išlaidos]]","v":{"v":125,"d":"125 EUR"}},{"$f":"Duomenys[[#This Row],[Kiekis]]*Duomenys[[#This Row],[Faktinės išlaidos]]","v":{"v":0,"d":"0 EUR"}}]
[null,"Ventiliacija","Gartraukis su vamzdžiu, standartinis",1,{"v":180,"d":"180.00 EUR"},null,{"$f":"Duomenys[[#This Row],[Kiekis]]*Duomenys[[#This Row],[Numatomos išlaidos]]","v":{"v":180,"d":"180 EUR"}},{"$f":"Duomenys[[#This Row],[Kiekis]]*Duomenys[[#This Row],[Faktinės išlaidos]]","v":{"v":0,"d":"0 EUR"}}]
[null,"Sienos","Sieninė plokštė (kiekis kvadratinėmis pėdomis)",70,{"v":2,"d":"2.00 EUR"},null,{"$f":"Duomenys[[#This Row],[Kiekis]]*Duomenys[[#This Row],[Numatomos išlaidos]]","v":{"v":140,"d":"140 EUR"}},{"$f":"Duomenys[[#This Row],[Kiekis]]*Duomenys[[#This Row],[Faktinės išlaidos]]","v":{"v":0,"d":"0 EUR"}}]
[null,"Langai","Stumdomi",2,{"v":120,"d":"120.00 EUR"},null,{"$f":"Duomenys[[#This Row],[Kiekis]]*Duomenys[[#This Row],[Numatomos išlaidos]]","v":{"v":240,"d":"240 EUR"}},{"$f":"Duomenys[[#This Row],[Kiekis]]*Duomenys[[#This Row],[Faktinės išlaidos]]","v":{"v":0,"d":"0 EUR"}}]
[null,"Kita",{"$nulls":4},{"$f":"Duomenys[[#This Row],[Kiekis]]*Duomenys[[#This Row],[Numatomos išlaidos]]","v":{"v":0,"d":"0 EUR"}},{"$f":"Duomenys[[#This Row],[Kiekis]]*Duomenys[[#This Row],[Faktinės išlaidos]]","v":{"v":0,"d":"0 EUR"}}]
[null,"Suma",null,null,{"$f":"SUBTOTAL(109,Duomenys[Numatomos išlaidos])","v":{"v":4014,"d":"4,014.00 EUR"}},{"$f":"SUBTOTAL(109,Duomenys[Faktinės išlaidos])","v":{"v":0,"d":"0.00 EUR"}},{"$f":"SUBTOTAL(109,Duomenys[Bendroji numatomų išlaidų suma])","v":{"v":5375,"d":"5,375.00 EUR"}},{"$f":"SUBTOTAL(109,Duomenys[Bendroji faktinių išlaidų suma])","v":{"v":0,"d":"0.00 EUR"}}]
[null,"Tarpinė suma",{"$nulls":4},{"$f":"SUBTOTAL(109,Duomenys[Bendroji numatomų išlaidų suma])","v":{"v":5375,"d":"5,375.00 EUR"}},{"$f":"SUBTOTAL(109,Duomenys[Bendroji faktinių išlaidų suma])","v":{"v":0,"d":"0.00 EUR"}}]
[null,"Nenumatytos išlaidos – pridėti 30 %",{"$nulls":4},{"$f":"G26*0.3","v":{"v":1612.5,"d":"1,612.50 EUR"}},{"$f":"H26*0.3","v":{"v":0,"d":"0.00 EUR"}}]
[null,"Iš viso",{"$nulls":4},{"$f":"SUM(G26:G27)","v":{"v":6987.5,"d":"6,987.50 EUR"}},{"$f":"SUM(H26:H27)","v":{"v":0,"d":"0.00 EUR"}}]